[Event "67th Mexican-ch Open 2022"]
[Site "Chihuahua"]
[Date "2022.04.16"]
[Round "6.15"]
[White "Morales Garcia, Sergio Joshafatt"]
[Black "Davalos Prieto, Abel Justo"]
[Result "1-0"]
[ECO "D37"]
[WhiteElo "2246"]
[BlackElo "2103"]
[Annotator "TA"]
[PlyCount "118"]
[EventDate "2022.04.12"]
[EventType "swiss"]
[EventCountry "MEX"]
[SourceTitle "playchess.com"]
[Source "ChessBase"]
[SourceQuality "1"]
[TimeControl "5400+30"]

{[%evp 17,118,17,29,14,46,32,48,33,44,39,35,53,59,68,308,82,72,43,39,32,32,38,26,31,61,64,63,58,67,58,86,58,85,54,62,64,82,62,67,50,80,81,73,72,93,85,91,93,94,79,79,0,95,96,103,102,104,101,111,106,116,116,112,98,139,139,191,129,160,153,146,146,178,166,166,166,189,179,229,224,215,221,214,180,191,149,192,132,671,671,611,604,528,665,651,664,654,620,580,291,1901,1787,29987]} 1. d4 {[%emt 0:00:02]} d5 {[%emt 0:00:12]} 2. c4 {[%emt 0:00:06]} e6 {[%emt 0:00:34]} 3. Nc3 {[%emt 0:00:05]} Nf6 {[%emt 0:00:29]} 4. Nf3 {[%emt 0:00:04]} Be7 {[%emt 0:00:27]} 5. Bf4 {[%emt 0:00:40]} O-O {[%emt 0:00:26]} 6. e3 {[%emt 0:00:06]} c5 {[%emt 0:00:26]} 7. dxc5 {[%emt 0:00:37]} Bxc5 {[%emt 0:00:22]} 8. Qc2 {[%emt 0:00:42]} Nc6 {[%emt 0:00:41]} 9. a3 {[%emt 0:00:08] 9.Rd1 is the fancy move.} Qa5 {[%emt 0:04:08]} 10. Be2 {[%emt 0:14:41] D37: Queen's Gambit Declined: 5 Bf4.} Ne4 {[%emt 0:02:36]} 11. cxd5 {[%emt 0:01:05]} exd5 {[%emt 0:00:34][%cal Od5d4]} 12. O-O {[%emt 0:00:50][%csl LRd5,LRe4] White is slightly better.} Nxc3 {[%emt 0:00:16]} 13. bxc3 {[%emt 0:00:19]} h6 {[%emt 0:07:31]} 14. Rfd1 {[%emt 0:07:13] [#]} Be6 $146 {[%emt 0:00:40]} ({Predecessor:} 14... Rd8 15. Nd4 Bd6 16. Bxd6 Rxd6 17. Rab1 Rd8 18. Qb3 Qc7 19. Bf3 Ne7 20. a4 b6 {1-0 (39) Rychagov,A (2545)-Vantika,A (2286) Chess.com INT 2021}) 15. Rab1 {[%emt 0:01:14]} Qd8 $2 {[%emt 0:10:28] [#]} ({Better is} 15... Rac8 $14) 16. Rxb7 $2 {[%emt 0:02:30]} (16. c4 $1 $18 {[%cal Rc4d5] is the precise move to win. Strongly threatening cxd5.} d4 17. exd4 (17. Rxb7 Qf6 $16)) 16... Bb6 $16 {[%emt 0:00:54]} 17. Nd4 {[%emt 0:18:30]} (17. c4 $5 {[%cal Rc4d5]} Rc8 18. Qa4 $16) 17... Na5 {[%emt 0:14:10] [#]} 18. Nxe6 $1 {[%emt 0:00:55]} fxe6 {[%emt 0:00:13]} 19. Ba6 {[%emt 0:03:35]} ({Avoid the trap} 19. Qg6 $2 Nxb7 20. Qxe6+ Kh8 21. Rxd5 Qe8 22. Qxe8 Rfxe8 $19) 19... Nxb7 {[%emt 0:03:03]} 20. Bxb7 {[%emt 0:00:21] This bishop pair is nice.} Rb8 {[%emt 0:00:07]} 21. Bxb8 {[%emt 0:00:41]} Qxb8 {[%emt 0:00:07]} 22. Ba6 {[%emt 0:04:27]} Qe5 {[%emt 0:02:30][%cal Of8f2] White must now prevent ...Rxf2!} 23. Qd3 {[%emt 0:05:10]} ({Much worse is} 23. g3 Bxe3 24. fxe3 Qxe3+ 25. Kh1 Qf3+ 26. Kg1 Qe3+ 27. Kh1 Qf3+ 28. Kg1 Qe3+ $11) 23... Rd8 {[%emt 0:12:36]} 24. Qg6 {[%emt 0:06:24]} Qf6 {[%emt 0:00:36]} 25. Qg4 {[%emt 0:05:27]} Rf8 {[%emt 0:02:48]} 26. Rf1 {[%emt 0:01:22] Active counter play!} Qf5 {[%emt 0:01:44]} 27. Qxf5 {[%emt 0:09:56]} (27. Qb4 {seems wilder.} Qe5 28. g3 h5 29. a4) 27... Rxf5 {[%emt 0:00:10][%mdl 4096] Endgame KRB-KRB} 28. Rc1 {[%emt 0:01:10][%cal Bf1c1,Bc1c4,Bc4g4][%mdl 32]} Kf7 {[%emt 0:01:39]} 29. Bd3 {[%emt 0:01:22]} Rf6 {[%emt 0:01:14]} 30. c4 {[%emt 0:00:28]} dxc4 {[%emt 0:00:17]} 31. Rxc4 {[%emt 0:00:16]} Ke7 {[%emt 0:01:04]} 32. Rg4 {[%emt 0:01:04]} Kf8 {[%emt 0:00:48]} 33. Re4 {[%emt 0:03:02]} Ke7 {[%emt 0:01:57]} 34. Rg4 {[%emt 0:01:50]} Kf8 $1 {[%emt 0:00:36]} 35. g3 {[%emt 0:00:47]} Rf7 {[%emt 0:02:56]} 36. Bc4 {[%emt 0:01:20]} Rf6 {[%emt 0:02:14]} 37. Kg2 {[%emt 0:01:40]} Kf7 {[%emt 0:02:45]} 38. a4 {[%emt 0:01:02]} Kf8 {[%emt 0:07:23]} 39. Re4 {[%emt 0:03:27]} Ke7 {[%emt 0:00:20]} 40. f4 {[%emt 0:00:10]} Kd6 {[%emt 0:00:26]} 41. Kf3 {[%emt 0:01:09]} a5 {[%emt 0:03:02]} (41... Bc7 $16 {might work better.} 42. Re5 Kd7) 42. Ke2 {[%emt 0:01:24]} (42. Re5 $18) 42... Bc5 {[%emt 0:04:17]} 43. Kd3 {[%emt 0:00:24]} Bb4 {[%emt 0:01:54]} 44. Re5 {[%emt 0:00:10]} Bc5 {[%emt 0:01:22]} 45. Ke4 {[%emt 0:01:29]} Bb4 {[%emt 0:03:23]} 46. Rb5 {[%emt 0:00:59]} Kc7 {[%emt 0:00:16]} 47. g4 {[%emt 0:01:20]} Be1 {[%emt 0:03:59]} (47... g5 $142 48. fxg5 hxg5 49. Rxg5 Rh6) 48. g5 $18 {[%emt 0:01:11]} hxg5 {[%emt 0:00:09]} 49. Rxg5 {[%emt 0:00:31]} g6 {[%emt 0:00:54]} 50. Kf3 {[%emt 0:00:55]} Bc3 {[%emt 0:01:56]} 51. Kg4 {[%emt 0:00:52]} Kd6 {[%emt 0:00:31]} 52. Rb5 {[%emt 0:00:44]} ({White should play} 52. Bd3 $18) 52... e5 $2 {[%emt 0:00:34][%mdl 8192]} (52... Rf5 $16 53. Rb8 Rc5) 53. fxe5+ {[%emt 0:00:30]} Bxe5 {[%emt 0:00:14]} 54. Rd5+ {[%emt 0:00:14]} Ke6 {[%emt 0:00:29]} 55. Rxa5+ {[%emt 0:00:04]} Kd6 {[%emt 0:00:13]} 56. Rd5+ {[%emt 0:00:26]} Ke6 {[%emt 0:00:25]} 57. h4 {[%emt 0:00:22]} Rf5 {[%emt 0:00:34]} 58. Rb5+ {[%emt 0:00:24]} Ke7 $2 {[%emt 0:00:49]} (58... Kd6 59. Bd3 Rf2 60. Bxg6 Rb2) 59. Bd3 {[%emt 0:00:41]} Ke8 {[%emt 0:02:32] Weighted Error Value: White=0.27 (precise) /Black=0.38} 1-0

[Event "67th Mexican-ch Open 2022"]
[Site "Chihuahua"]
[Date "2022.04.16"]
[Round "6.16"]
[White "Hernandez Guerrero, Eduardo"]
[Black "Silva Hernandez, Jose Luis"]
[Result "0-1"]
[ECO "B72"]
[WhiteElo "2232"]
[BlackElo "2006"]
[Annotator "TA"]
[PlyCount "154"]
[EventDate "2022.04.12"]
[EventType "swiss"]
[EventCountry "MEX"]
[SourceTitle "playchess.com"]
[Source "ChessBase"]
[SourceQuality "1"]
[TimeControl "5400+30"]

{[%evp 15,154,15,30,10,29,31,32,37,67,0,4,-7,11,16,17,-56,-75,-58,-64,-61,-58,-56,-62,-52,-50,-93,-43,-65,-18,-30,-16,-36,-39,-104,-104,-110,-102,-112,-96,-99,0,0,0,0,99,0,0,0,25,0,12,0,0,0,0,0,10,0,0,0,0,0,0,0,34,0,84,47,47,15,15,14,20,0,0,-8,-8,-20,-8,-99,-95,-108,0,-91,-66,-106,-97,-145,-123,-443,-432,-606,-604,-629,-618,-598,-577,-645,-645,-660,-641,-942,-737,-1127,-1112,-1077,-1002,-6001,-1683,-2534,-2367,-2625,-2360,-5057,-1385,-1664,-1064,-29989,-29990,-29991,-29988,-29988,-29989,-29993,-29985,-29985,-29986,-29988,-29986,-29989,-29990,-29991,-29987,-29987,-29985,-29985,-29985,-29987,-29988,-29998,-29999]} 1. e4 {[%emt 0:00:07]} g6 {[%emt 0:00:58]} 2. d4 {[%emt 0:00:22]} d6 {[%emt 0:00:09]} 3. Nc3 {[%emt 0:00:21]} Nf6 {[%emt 0:00:15]} 4. h3 {[%emt 0:06:55]} Bg7 {[%emt 0:01:12]} 5. Nf3 {[%emt 0:00:08]} O-O {[%emt 0:00:35]} 6. Be3 {[%emt 0:01:15]} c5 {[%emt 0:04:16]} 7. Qd2 {[%emt 0:07:19]} cxd4 {[%emt 0:03:27]} 8. Nxd4 {[%emt 0:00:06]} Nc6 {[%emt 0:00:04]} 9. g4 {[%emt 0:02:55] B72: Sicilian Dragon: 6 Be3, lines with h3+Bc4 and sidelines.} Be6 {[%emt 0:05:18]} 10. f4 {[%emt 0:11:50] [#]} Nxd4 $146 {[%emt 0:04:44]} ({Predecessor:} 10... Na5 11. f5 Bc4 12. Bg2 Ba6 13. b3 b6 14. Bh6 Qc7 15. Bxg7 Kxg7 16. g5 Nd7 {1-0 (25) Rozsa,B-Thomasson,W Oklahoma City 1956}) 11. Bxd4 {[%emt 0:00:10] White is slightly better.} Qa5 {[%emt 0:00:13][%cal Of6e4]} 12. Bg2 {[%emt 0:01:42]} (12. f5 $1 $14 Bd7 13. O-O-O) 12... Rfc8 {[%emt 0:09:46]} 13. g5 {[%emt 0:04:11]} Nd7 {[%emt 0:01:55]} 14. Bxg7 {[%emt 0:01:05]} Kxg7 {[%emt 0:00:05]} 15. Nd5 {[%emt 0:02:51]} (15. h4 $11) 15... Qxd2+ $15 {[%emt 0:01:02]} 16. Kxd2 {[%emt 0:00:05]} Bxd5 {[%emt 0:00:05]} 17. exd5 {[%emt 0:00:08]} Rc4 {[%emt 0:00:03] aiming for ...Rac8.} 18. Rhf1 {[%emt 0:00:26]} Rac8 {[%emt 0:00:17]} 19. c3 {[%emt 0:00:10]} b5 {[%emt 0:07:32]} 20. Rac1 {[%emt 0:09:59]} Ra4 {[%emt 0:17:04]} (20... Nb6 $17) 21. a3 {[%emt 0:01:37]} Rh8 {[%emt 0:01:11]} (21... f5 $15 {deserves consideration.}) 22. Rce1 $11 {[%emt 0:12:59]} Kf8 {[%emt 0:03:34]} 23. Rf2 {[%emt 0:05:19]} h6 {[%emt 0:02:36]} 24. Bf1 {[%emt 0:00:27]} (24. h4 $15) 24... a6 $17 {[%emt 0:00:35]} 25. h4 {[%emt 0:06:11]} hxg5 {[%emt 0:03:46]} 26. hxg5 {[%emt 0:00:06]} Rh4 {[%emt 0:00:52]} 27. Ke3 {[%emt 0:03:54] [#]} Nc5 {[%emt 0:10:35]} ({Black should try} 27... f6 $1 $17 28. Rd1 Kg8) 28. b4 $36 {[%emt 0:00:59][%mdl 2048] White has good play.} Nd7 {[%emt 0:00:38]} 29. Ra1 {[%emt 0:00:08]} Nb6 {[%emt 0:11:24]} (29... f5 $11 {remains equal.}) 30. Rd2 {[%emt 0:10:09]} (30. Kd4 $16) 30... Rh1 {[%emt 0:01:04]} 31. Kf3 {[%emt 0:01:05]} Nc4 {[%emt 0:03:49]} 32. Rda2 {[%emt 0:00:22]} Nb6 {[%emt 0:00:35]} 33. Kg2 {[%emt 0:00:37]} Rxf1 {[%emt 0:00:45]} 34. Rxf1 {[%emt 0:00:54] Strongly threatening Rd1.} Nxd5 {[%emt 0:00:03][%mdl 4096] Endgame KRR-KRN} 35. Rf3 {[%emt 0:00:06] Against Ne3+} e6 {[%emt 0:00:27]} 36. Kg3 {[%emt 0:03:04]} Ke7 {[%emt 0:00:10]} 37. Rd3 {[%emt 0:00:26]} Nb6 {[%emt 0:00:15]} 38. Rd1 {[%emt 0:00:09]} Nd5 {[%emt 0:00:15]} 39. Rc1 {[%emt 0:00:38]} Nb6 {[%emt 0:00:49]} 40. Kf3 {[%emt 0:00:17]} Nc4 {[%emt 0:00:37]} (40... Nd5 $11) 41. Ke4 {[%emt 0:01:04]} Nb6 {[%emt 0:00:38]} 42. Kd3 {[%emt 0:00:58]} Nd5 {[%emt 0:00:17]} 43. Rf1 {[%emt 0:00:11]} Kd7 {[%emt 0:00:11]} 44. Rf3 {[%emt 0:01:30]} a5 {[%emt 0:04:01][%cal Ra5b4]} 45. Rff2 {[%emt 0:04:30]} Kc6 {[%emt 0:01:06]} 46. Kd4 {[%emt 0:01:24]} Nxf4 {[%emt 0:00:24]} 47. Rh2 {[%emt 0:02:03]} (47. c4 $1 $11 {keeps the balance.}) 47... e5+ $17 {[%emt 0:00:44][%cal Be6e5,Be5e4][%mdl 32]} 48. Ke4 {[%emt 0:00:01]} Nh5 {[%emt 0:01:36]} (48... Ne6 $17 49. Rhg2 Kd7) 49. Kf3 {[%emt 0:00:14]} (49. Rhf2 $11) 49... Kd5 {[%emt 0:00:33]} 50. Rhd2+ {[%emt 0:00:05]} Ke6 {[%emt 0:00:03]} 51. Kg4 {[%emt 0:00:07]} (51. bxa5 $142 Rxa5 52. Ra1) 51... f5+ {[%emt 0:00:26]} 52. Kf3 $2 {[%emt 0:00:26][%mdl 8192] This move loses the game for White.} (52. gxf6 $17 {nothing else works.} Nxf6+ 53. Kf3) 52... e4+ $19 {[%emt 0:00:09]} 53. Ke3 {[%emt 0:00:06]} (53. Kg2 $142 Nf4+ 54. Kf2) 53... Ke5 {[%emt 0:00:07]} 54. Rd4 {[%emt 0:00:32]} f4+ {[%emt 0:00:47]} 55. Kf2 {[%emt 0:00:08]} Ng3 {[%emt 0:00:55] And now ...Nf5 would win.} 56. bxa5 {[%emt 0:00:22]} Rxa5 {[%emt 0:00:20]} 57. Rb4 {[%emt 0:00:05]} d5 {[%emt 0:00:59] Inhibits c4.} 58. a4 {[%emt 0:00:22]} bxa4 {[%emt 0:00:14]} 59. Rbxa4 {[%emt 0:00:28]} Rc5 {[%emt 0:00:03]} 60. R2a3 {[%emt 0:00:09]} Kf5 {[%emt 0:00:18] [#] ...Kg4 is the strong threat.} 61. Ra5 {[%emt 0:00:08]} Rc8 {[%emt 0:02:09]} (61... Rxa5 $142 62. Rxa5 Kg4) 62. Rxd5+ {[%emt 0:00:07]} Kg4 {[%emt 0:00:10]} 63. Kg2 {[%emt 0:01:37]} Nf5 {[%emt 0:00:12]} 64. Re5 {[%emt 0:00:28]} f3+ {[%emt 0:00:10]} (64... Ne3+ $142 65. Kf2 Nc4) 65. Kf2 {[%emt 0:00:18]} Kf4 {[%emt 0:00:04]} 66. Rxf5+ {[%emt 0:03:19]} gxf5 {[%emt 0:00:33] KR-KR. Black mates.} 67. g6 {[%emt 0:00:05]} Rc6 {[%emt 0:01:59]} 68. g7 {[%emt 0:01:10]} Rg6 {[%emt 0:00:05]} 69. Ra7 {[%emt 0:00:02]} Rg2+ {[%emt 0:00:18]} 70. Kf1 {[%emt 0:00:07]} Ke3 {[%emt 0:00:52]} 71. c4 {[%emt 0:00:25]} Kd4 {[%emt 0:00:03]} 72. Rf7 {[%emt 0:00:28]} e3 {[%emt 0:00:58]} 73. Re7 {[%emt 0:00:27]} f4 {[%emt 0:00:25][%cal Bf5f4,Bf4e3][%mdl 32]} 74. c5 {[%emt 0:00:51]} Kxc5 {[%emt 0:00:23]} 75. Re4 {[%emt 0:00:10]} Kd5 {[%emt 0:00:33]} 76. g8=Q+ Rxg8 {[%emt 0:00:18]} 77. Rxe3 fxe3 {[%emt 0:00:45] Weighted Error Value: White=0.50/Black=0.20 (precise)} 0-1

[Event "67th Mexican-ch Open 2022"]
[Site "Chihuahua"]
[Date "2022.04.16"]
[Round "6.17"]
[White "Flores Guerrero, Jesus Aldair"]
[Black "Flores Irurso, Paul Josue"]
[Result "1/2-1/2"]
[ECO "A03"]
[WhiteElo "2251"]
[BlackElo "1912"]
[Annotator "TA"]
[PlyCount "52"]
[EventDate "2022.04.12"]
[EventType "swiss"]
[EventCountry "MEX"]
[SourceTitle "playchess.com"]
[Source "ChessBase"]
[SourceQuality "1"]
[TimeControl "5400+30"]

{[%evp 10,52,-18,-12,5,-18,-7,-8,-4,-4,-8,-8,-8,-8,-4,-24,-17,-41,-8,-14,-16,-17,-16,-31,-31,-28,-14,-36,-5,-62,-19,-16,0,-22,0,-44,-32,-32,-22,-51,0,-75,0,-27,12]} 1. d4 {[%emt 0:06:03]} Nf6 {[%emt 0:00:18]} 2. e3 {[%emt 0:03:39]} g6 {[%emt 0:02:24]} 3. f4 {[%emt 0:00:51]} Bg7 {[%emt 0:01:47]} 4. Nf3 {[%emt 0:00:16]} O-O {[%emt 0:01:38]} 5. Be2 {[%emt 0:00:44]} d5 {[%emt 0:04:07]} 6. O-O {[%emt 0:00:09]} Nbd7 {[%emt 0:04:18][%cal Bb8d7,Bd7f6,Bf6e4][%mdl 32] A03: Bird's Opening with 1...d5.} 7. c3 {[%emt 0:03:18]} Ne4 {[%emt 0:03:06]} 8. Nbd2 {[%emt 0:00:08]} Ndf6 {[%emt 0:00:12] The position is equal.} 9. Nxe4 {[%emt 0:01:14]} Nxe4 {[%emt 0:00:11] [#]} 10. Nd2 $146 {[%emt 0:01:30]} ({Predecessor:} 10. Bd3 Nd6 11. Qb3 c6 12. Bd2 Qb6 13. Qxb6 axb6 14. h3 b5 15. Rfe1 Bf5 16. Bxf5 gxf5 {0-1 (66) Melo,F (1828)-De Oliveira,J (1953) Joao Pessoa 2015}) 10... Nd6 {[%emt 0:09:35]} 11. Bf3 {[%emt 0:00:12]} c6 {[%emt 0:00:06]} 12. g4 {[%emt 0:00:11]} f5 {[%emt 0:09:56]} 13. g5 {[%emt 0:03:31]} Ne4 {[%emt 0:04:19]} 14. Nxe4 {[%emt 0:00:51]} fxe4 {[%emt 0:00:46]} 15. Bg4 {[%emt 0:00:10]} Bf5 {[%emt 0:03:36]} 16. Rf2 {[%emt 0:01:31]} Qd7 {[%emt 0:01:40]} 17. Rg2 {[%emt 0:00:26]} Kf7 {[%emt 0:04:54]} 18. Bd2 {[%emt 0:03:40]} Rh8 {[%emt 0:46:37]} 19. h4 (19. Bxf5 $11 Qxf5 20. c4) 19... h5 20. Bxf5 Qxf5 21. Kh2 {[%emt 1:12:36]} Qd7 {[%emt 0:01:30]} 22. Rg3 e6 {[%emt 0:00:00]} 23. Rg2 {[%emt 0:00:00]} Bf8 {[%emt 0:00:00]} 24. Rg3 {[%emt 0:00:00]} Bd6 {[%emt 0:00:00]} ({Black should play} 24... c5 $15) 25. a3 {[%emt 0:00:00]} (25. c4 $11 {keeps the balance.}) 25... Kg7 {[%emt 0:00:00]} (25... c5 $17) 26. Rg2 {[%emt 0:00:00][%cal Oc3c4]} Raf8 {[%emt 0:00:00] Weighted Error Value: White=0.21 (precise) /Black=0.19 (very precise)} 1/2-1/2

[Event "67th Mexican-ch Open 2022"]
[Site "Chihuahua"]
[Date "2022.04.16"]
[Round "6.18"]
[White "Avila Bautista, Roberto Al"]
[Black "Blanco Fernandez, Alvaro"]
[Result "1-0"]
[ECO "A15"]
[WhiteElo "2090"]
[BlackElo "2216"]
[Annotator "TA"]
[PlyCount "35"]
[EventDate "2022.04.12"]
[EventType "swiss"]
[EventCountry "MEX"]
[SourceTitle "playchess.com"]
[Source "ChessBase"]
[SourceQuality "1"]
[TimeControl "5400+30"]

{[%evp 14,35,0,-13,26,4,2,0,0,-7,75,72,89,59,135,125,247,256,427,426,1119,1114,876,355]} 1. Nf3 {[%emt 0:00:14]} g6 {[%emt 0:00:32]} 2. c4 {[%emt 0:00:21]} Bg7 {[%emt 0:01:08]} 3. Nc3 {[%emt 0:00:32]} Nf6 {[%emt 0:00:47]} 4. g3 {[%emt 0:00:13]} O-O {[%emt 0:00:16]} 5. Bg2 {[%emt 0:00:29]} d6 {[%emt 0:00:05]} 6. O-O {[%emt 0:00:11]} c6 {[%emt 0:01:45]} 7. b3 {[%emt 0:02:18]} e5 {[%emt 0:02:35]} 8. Bb2 {[%emt 0:00:40]} e4 {[%emt 0:04:16] A15: English Opening: 1...Nf6.} 9. Ne1 {[%emt 0:01:05] [#]} d5 $146 {[%emt 0:00:58]} ({Predecessor:} 9... Re8 10. Rc1 Nbd7 11. Qc2 Nc5 12. b4 Na6 13. a3 Bf5 14. Qb3 Qd7 15. Nc2 Bh3 16. Ne3 {0-1 (65) Ragats,J (2118)-Suranyi,P (2153) Hungary 2011}) 10. cxd5 {[%emt 0:06:00]} cxd5 {[%emt 0:00:24] The position is equal.} 11. d3 {[%emt 0:02:51]} e3 {[%emt 0:00:45]} (11... Re8 $11 {keeps the balance.}) 12. fxe3 $16 {[%emt 0:04:03]} Ng4 {[%emt 0:01:17]} 13. Nc2 {[%emt 0:03:29]} Qg5 {[%emt 0:04:37]} (13... Nc6 $14) 14. Qc1 {[%emt 0:09:24]} Qh5 {[%emt 0:06:47]} (14... Rd8 $16 {was called for.} 15. h3 Nf6) 15. h3 $18 {[%emt 0:03:13]} Nh6 {[%emt 0:02:16]} (15... Nf6 {was worth a try.} 16. g4 Bxg4) 16. Nxd5 {[%emt 0:01:31] [#] aiming for Bxg7. White is clearly winning.} Qg5 {[%emt 0:04:23]} (16... Nd7 $142 17. Bxg7 Kxg7) 17. Bxg7 {[%emt 0:01:02]} Kxg7 {[%emt 0:00:05]} 18. e4 {[%emt 0:02:17] White took control after the opening.  Weighted Error Value: White=0.11 (very precise) /Black=0.73} (18. Qb2+ $142 f6 {[#]} 19. Nxf6 $1 {[%mdl 512]} Rxf6 20. h4) 1-0

[Event "67th Mexican-ch Open 2022"]
[Site "Chihuahua"]
[Date "2022.04.16"]
[Round "6.19"]
[White "Quiroga Jaquez, Angel Ivan"]
[Black "Arizpe, Frank"]
[Result "1-0"]
[ECO "D20"]
[WhiteElo "2185"]
[BlackElo "1274"]
[Annotator "TA"]
[PlyCount "105"]
[EventDate "2022.04.12"]
[EventType "swiss"]
[EventCountry "MEX"]
[SourceTitle "playchess.com"]
[Source "ChessBase"]
[SourceQuality "1"]
[TimeControl "5400+30"]

{[%evp 10,105,54,43,58,54,70,41,95,87,93,67,139,100,148,144,147,141,171,96,106,100,147,74,80,79,75,39,45,25,32,39,44,52,55,35,34,35,29,31,35,38,45,51,52,50,58,67,58,40,42,45,37,0,31,15,108,110,100,102,92,92,112,117,160,116,151,152,235,227,388,376,377,368,459,459,459,452,430,436,692,658,741,416,731,718,660,627,1570,1523,1535,1285,1465,1118,1662,1793,974,1195]} 1. d4 {[%emt 0:04:53]} Nf6 {[%emt 0:00:12]} 2. c4 {[%emt 0:00:47]} d5 {[%emt 0:00:26]} 3. Nc3 {[%emt 0:00:44]} dxc4 {[%emt 0:01:20]} 4. e4 {[%emt 0:03:09]} e6 {[%emt 0:00:17]} 5. Bxc4 {[%emt 0:02:37]} Bb4 {[%emt 0:02:12]} 6. f3 {[%emt 0:01:29]} O-O {[%emt 0:00:37] D20: Queen's Gambit Accepted: 3 e3 and 3 e4.} 7. Nge2 {[%emt 0:00:13]} Nc6 {[%emt 0:03:25]} 8. Be3 {[%emt 0:14:48]} b6 {[%emt 0:03:51]} (8... e5 $14) 9. a3 $16 {[%emt 0:01:21]} Be7 {[%emt 0:00:50]} 10. O-O {[%emt 0:00:27] [#]} a5 $146 {[%emt 0:02:43]} (10... e5 $14) ({Predecessor:} 10... Bb7 11. Rc1 Na5 12. Bd3 Qd7 13. b4 Nc6 14. Qc2 e5 15. d5 Nb8 16. Rfd1 Bd6 {1-0 (47) Rosu,I-Colta,I Eforie Nord 1998}) 11. Rc1 {[%emt 0:01:20]} Na7 {[%emt 0:04:43]} (11... e5 $142) 12. Qc2 {[%emt 0:05:53]} Bb7 {[%emt 0:01:36]} 13. Rfd1 {[%emt 0:00:35]} Qc8 {[%emt 0:02:02]} 14. d5 {[%emt 0:11:18]} (14. e5 $18 Nd7 15. Ne4) 14... exd5 15. Nxd5 {[%emt 0:00:45]} (15. exd5 {is interesting.} Qd7 16. Ng3 Nc8 17. Bb5) 15... Nxd5 {[%emt 0:05:23]} (15... Bxd5 $142 16. exd5 (16. Bxd5 Nxd5 17. Rxd5 c5 $16) 16... Qe8) 16. Bxd5 {[%emt 0:00:11]} (16. exd5 $142 Bd6 17. Nc3) 16... Bxd5 {[%emt 0:00:20]} 17. Rxd5 {[%emt 0:00:10]} c5 {[%emt 0:07:11]} 18. Ng3 {[%emt 0:03:24] 0x0.002037565f53dp-1022s more active pieces.} Rd8 {[%emt 0:03:47]} 19. Rcd1 {[%emt 0:01:32] Strongly threatening Rxd8+.} Rxd5 {[%emt 0:02:50]} 20. Rxd5 {[%emt 0:03:11]} Nc6 {[%emt 0:01:11]} 21. Nf5 {[%emt 0:00:23]} Bf8 {[%emt 0:00:52]} 22. Qd1 {[%emt 0:10:54]} Qe6 {[%emt 0:11:07]} 23. Bf4 {[%emt 0:00:37]} g6 {[%emt 0:05:04]} 24. Nh6+ {[%emt 0:02:03]} Kg7 $1 {[%emt 0:03:36]} 25. Ng4 {[%emt 0:00:21] [#] aiming for Bh6+.} h5 {[%emt 0:02:36]} 26. Ne5 {[%emt 0:02:57]} Nxe5 {[%emt 0:03:38]} 27. Bxe5+ {[%emt 0:00:16]} Kh7 {[%emt 0:02:10]} 28. a4 {[%emt 0:00:27]} Rc8 {[%emt 0:01:44]} 29. Qd2 {[%emt 0:02:46]} Bg7 {[%emt 0:01:30]} 30. Bxg7 {[%emt 0:00:21]} Kxg7 $14 {[%emt 0:00:02][%mdl 4096] Endgame KQR-KQR} 31. Qf4 {[%emt 0:00:47]} Rc6 {[%emt 0:04:19]} 32. Kf2 {[%emt 0:01:35]} Qf6 {[%emt 0:00:37]} (32... c4 $11) 33. Qxf6+ $16 {[%emt 0:00:34] White now steadily converts the win.} Kxf6 {[%emt 0:00:02] KR-KR} 34. Ke3 {[%emt 0:00:10]} Ke6 {[%emt 0:05:05]} 35. Kd3 {[%emt 0:01:08]} c4+ {[%emt 0:01:10]} 36. Kc3 {[%emt 0:03:24]} f5 {[%emt 0:01:50]} 37. Rd4 {[%emt 0:00:05]} Ke5 {[%emt 0:01:29]} 38. Rxc4 {[%emt 0:02:29]} Rf6 {[%emt 0:05:14]} (38... Rd6 $16 39. exf5 Kxf5) 39. exf5 $18 {[%emt 0:00:22]} gxf5 $2 {[%emt 0:00:17]} (39... Kxf5 {keeps fighting.} 40. b4 Re6 41. bxa5 bxa5) 40. Rh4 {[%emt 0:00:19]} Rc6+ {[%emt 0:02:15]} 41. Kb3 {[%emt 0:00:35]} Rd6 {[%emt 0:01:11]} 42. Rxh5 {[%emt 0:00:19]} Kf4 {[%emt 0:00:51]} 43. g3+ {[%emt 0:02:02]} Kxf3 {[%emt 0:00:24]} 44. Rxf5+ {[%emt 0:00:05]} Kg4 {[%emt 0:00:16]} (44... Kg2 $142 45. Rh5 Rg6) 45. Rf4+ {[%emt 0:00:17]} Kh3 {[%emt 0:00:14]} 46. Rh4+ {[%emt 0:00:08]} Kg2 {[%emt 0:00:13]} 47. Kc4 {[%emt 0:00:31] Against Rd5. White is clearly winning.} Kf3 {[%emt 0:02:48]} 48. Kb5 {[%emt 0:00:45]} Ke3 {[%emt 0:00:38]} 49. b4 {[%emt 0:00:39]} axb4 {[%emt 0:00:15]} 50. Rxb4 {[%emt 0:00:13]} Rh6 {[%emt 0:00:43]} 51. h4 {[%emt 0:01:00] [#] Hoping for g4.} Kf3 {[%emt 0:01:10]} 52. g4 {[%emt 0:00:09]} Rxh4 {[%emt 0:00:30]} 53. Kxb6 {[%emt 0:00:07] Weighted Error Value: White=0.11 (very precise) /Black=0.31} 1-0